bitfinex/quotes_ETHUSD_20210701
["timestamp","ask_amount","ask_price","bid_price","bid_amount"]
[1625109362655,7.27747347,2207.7,2206.7,0.1]
[1625109362755,7.27747347,2207.7,2206.8,0.14]
[1625109362956,7.27747347,2207.7,2206.7,2.2706328]
[1625109363055,16.79431,2207.8,2206.8,5.01]
[1625109363157,10.0,2207.8,2206.8,5.01]
[1625109363257,10.0,2207.8,2206.9,0.14]
[1625109363556,10.0,2207.8,2207.2,6.79271]
[1625109363658,10.0,2207.8,2207.2,11.75901]
[1625109363756,10.0,2207.8,2207.3,0.12]
[1625109364233,10.0,2207.8,2207.2,7.3805]
[1625109364328,10.0,2207.8,2207.4,5.01]
[1625109364629,10.0,2207.8,2207.4,11.80204]
[1625109366548,10.0,2207.8,2207.4,11.94204]
[1625109366644,0.0001,2207.8,2207.4,11.94204]
[1625109366746,0.0001,2207.8,2207.5,0.08]
[1625109366944,0.0001,2207.8,2207.6,6.79135]
[1625109367746,0.0001,2207.8,2207.6,14.63069299]
[1625109367844,0.0001,2207.8,2207.7,17.2]
[1625109368448,0.0001,2207.8,2207.7,24.2]
[1625109368894,0.0001,2207.8,2207.7,17.2]
[1625109368999,0.0001,2207.8,2207.7,13.17463035]
[1625109370101,0.0001,2207.8,2207.7,21.13296845]
[1625109370201,0.0001,2207.8,2207.7,26.13506845]
[1625109370298,0.0001,2207.8,2207.7,26.27506845]
[1625109370400,0.0001,2207.8,2207.7,26.31506845]
[1625109371343,0.0001,2207.8,2207.7,18.35673035]
[1625109371443,0.0001,2207.8,2207.7,13.35463035]
[1625109371546,0.0001,2207.8,2207.7,13.31463035]
[1625109372345,0.0001,2207.8,2207.7,18.41463035]
[1625109372949,0.0001,2207.8,2207.7,26.41354513]
[1625109373196,0.0001,2207.8,2207.7,26.45354513]
[1625109373596,0.0001,2207.8,2207.7,13.35463035]
[1625109373798,0.0001,2207.8,2207.7,13.31463035]
[1625109374199,0.0001,2207.8,2207.7,21.28512888]
[1625109374400,0.0001,2207.8,2207.7,13.31463035]
[1625109376379,0.0001,2207.8,2207.7,25.32463035]
[1625109376581,0.0001,2207.8,2207.7,25.36463035]
[1625109376784,0.0001,2207.8,2207.7,36.81905704]
[1625109377482,0.0001,2207.8,2207.7,16.85313035]
[1625109377583,0.0001,2207.8,2207.7,16.81313035]
[1625109377797,0.0001,2207.8,2207.7,14.12967877]
[1625109377900,0.0001,2207.8,2207.7,10.63117877]
[1625109379405,0.0001,2207.8,2207.7,0.14]
[1625109379512,3.2522,2207.8,2207.6,5.01]
[1625109379805,3.2522,2207.8,2207.4,5.01]
[1625109379949,3.2522,2207.8,2207.1,17.03719287]
[1625109379950,3.2522,2207.8,2207.3,12.86532492]
[1625109380141,3.2522,2207.8,2207.4,0.14]
[1625109381250,3.2522,2207.8,2207.4,6.79158]
[1625109381355,3.2522,2207.8,2206.7,0.14]
[1625109381447,0.29520891,2207.7,2206.7,0.14]
[1625109381548,0.12,2207.7,2206.5,28.80419349]
[1625109381649,0.12,2207.7,2206.7,7.98783858]
[1625109382194,3.2522,2207.8,2206.7,7.98783858]
[1625109382293,3.2522,2207.8,2206.7,14.78126858]
[1625109382794,3.2522,2207.8,2207.0,4.51]
[1625109383295,3.2522,2207.8,2206.7,7.98783858]
[1625109383395,0.12790304,2207.7,2206.7,7.98783858]
[1625109383500,3.2522,2207.8,2206.9,6.79309]
[1625109383800,0.12,2207.7,2206.9,6.79309]
[1625109383999,0.12,2207.7,2206.5,29.80505]
[1625109384099,0.12,2207.7,2206.7,5.01]
[1625109384666,0.12,2207.7,2206.5,27.65153453]
[1625109384773,7.04734467,2207.7,2206.5,19.79125]
[1625109384870,13.64129179,2207.6,2206.5,10.733]
[1625109384966,5.287548,2207.5,2206.3,10.4105]
[1625109385063,5.287548,2207.5,2206.2,7.81265965]
[1625109385266,0.277548,2207.5,2206.2,7.81265965]
[1625109385365,0.277548,2207.5,2206.1,20.3859]
[1625109385665,5.287548,2207.5,2206.1,20.3859]
[1625109385766,0.12,2207.4,2206.0,17.37139731]
[1625109385869,0.17753583,2207.3,2206.0,9.06028]
[1625109385968,3.79993583,2207.3,2205.8,10.6244]
[1625109386072,5.01,2207.1,2205.8,10.6244]
[1625109386165,3.39879,2206.9,2205.8,10.6244]
[1625109386267,0.14660006,2206.8,2205.8,10.6244]
[1625109386467,4.48710006,2206.8,2205.8,10.6244]
[1625109386569,4.48710006,2206.8,2205.5,9.8033]
[1625109386712,4.48710006,2206.8,2205.4,21.24166]
[1625109386815,0.22575022,2206.6,2205.4,21.24166]
[1625109387315,6.79766,2206.5,2205.4,9.9177]
[1625109387414,0.22575022,2206.6,2205.2,0.14]
[1625109387613,0.04,2206.5,2205.2,0.14]
[1625109387712,0.22692493,2206.4,2205.2,0.14]
[1625109388013,0.2354454,2206.6,2205.2,0.14]
[1625109388718,0.2354454,2206.6,2205.3,5.01]
[1625109388816,9.48661704,2206.7,2205.3,5.01]
[1625109388971,1.1824,2206.7,2205.4,5.01]
[1625109389063,6.79754,2206.5,2205.6,6.79732]
[1625109389165,9.06415,2206.6,2205.6,6.79732]
[1625109389265,21.06337107,2206.9,2205.8,5.01]
[1625109389363,12.46162,2206.9,2205.8,5.01]
[1625109389566,12.46162,2206.9,2205.6,5.01]
[1625109389567,0.1,2206.8,2205.6,5.01]
[1625109390068,0.1,2206.8,2205.9,6.7964]
[1625109390168,6.79649,2207.0,2205.8,2.7449]
[1625109390268,6.79649,2207.0,2205.8,7.2908]
[1625109390370,6.79649,2207.0,2206.0,5.01]
[1625109390998,14.92891469,2207.0,2205.9,5.01]
[1625109391224,0.06,2206.9,2205.7,5.01]
[1625109392116,0.06,2206.9,2205.8,7.94731411]
[1625109392213,0.06,2206.9,2205.7,5.01]
[1625109392313,6.79624,2207.0,2206.0,6.79615]
[1625109392516,6.79624,2207.0,2206.2,5.01]
[1625109392718,6.79624,2207.0,2206.0,5.01]
[1625109393014,6.79624,2207.0,2205.8,5.01]
[1625109393458,6.79624,2207.0,2206.1,6.79584]
[1625109393558,6.79624,2207.0,2206.1,11.76814]
[1625109393658,6.79624,2207.0,2206.3,5.01]
[1625109393857,0.04,2206.9,2206.3,5.01]
[1625109394407,6.79624,2207.0,2206.3,5.01]
[1625109394607,6.79624,2207.0,2205.8,9.06141]
[1625109395410,6.74624,2207.0,2205.8,9.06141]
[1625109395610,0.08,2206.9,2205.8,9.06141]
[1625109395752,6.79664,2206.8,2205.8,9.06141]
[1625109396756,6.79664,2206.8,2205.6,23.19090137]
[1625109396861,6.79664,2206.8,2205.8,5.01]
[1625109396958,0.04,2206.7,2205.8,11.80674]
[1625109397056,0.04,2206.7,2205.8,6.79674]
[1625109397257,6.79664,2206.8,2205.8,6.79674]
[1625109398960,6.79664,2206.8,2206.0,5.01]
[1625109399062,6.79609,2207.0,2206.0,5.01]
[1625109399161,6.79609,2207.0,2205.9,5.01]
[1625109399260,6.79609,2207.0,2205.8,5.01]
[1625109399460,0.08,2206.9,2205.8,5.01]
[1625109399563,0.08,2206.9,2205.8,4.91]
[1625109399661,0.08,2206.9,2205.5,17.20255]
[1625109400300,6.79647,2206.9,2205.9,6.79638]
[1625109400704,6.79647,2206.9,2206.0,7.84391983]
[1625109400808,10.7402,2207.2,2206.0,7.98627292]
[1625109400909,10.1336,2207.4,2206.0,15.98627292]
[1625109401002,9.8478,2207.5,2206.1,0.02484149]
[1625109401103,9.8478,2207.5,2206.2,5.01]
[1625109401205,9.8478,2207.5,2206.2,5.15]
[1625109401302,9.8478,2207.5,2206.6,6.79425]
[1625109401402,6.85,2207.6,2206.8,5.01]
[1625109401505,0.1,2207.5,2206.8,9.8727]
[1625109401602,0.1,2207.5,2206.8,4.8627]
[1625109401702,3.39791,2207.8,2206.8,4.8627]
[1625109401703,11.52434139,2207.8,2206.8,4.8627]
[1625109401908,3.39791,2207.8,2206.8,4.8627]
[1625109402002,5.01,2207.6,2206.8,4.8627]
[1625109402567,5.01,2207.6,2206.4,5.15]
[1625109402666,0.14,2207.5,2206.4,5.01]
[1625109402766,0.14,2207.5,2206.2,10.4664]
[1625109402865,0.2,2207.4,2206.2,10.4664]
[1625109403568,0.1,2207.4,2206.2,10.4664]
[1625109403769,0.1,2207.4,2206.3,5.01]
[1625109403873,0.04,2207.3,2206.3,5.01]
[1625109403972,0.1,2207.4,2206.3,5.01]
[1625109404069,3.49804,2207.4,2206.3,5.01]
[1625109404169,3.49804,2207.4,2206.3,4.91]
[1625109404470,6.79616,2207.0,2206.3,4.91]
[1625109405209,6.79616,2207.0,2205.9,18.61094621]
[1625109405310,6.79616,2207.0,2205.9,10.6938]
[1625109405411,0.17582068,2206.9,2205.8,25.0023356]
[1625109405638,6.79676,2206.8,2205.8,24.8623356]
[1625109405738,6.79676,2206.8,2205.9,0.14]
[1625109406038,0.15281896,2207.1,2205.9,0.14]
[1625109406137,9.06155,2207.2,2206.0,5.01]
[1625109406236,9.06155,2207.2,2206.0,4.91]
[1625109406438,18.78400308,2207.3,2206.1,0.14]
[1625109406539,20.9636,2207.5,2206.1,8.14095671]
[1625109406643,27.75828,2207.5,2206.5,6.79468]
[1625109406743,27.75828,2207.5,2206.5,10.74838]
[1625109406841,17.43918,2207.5,2206.5,10.74838]
[1625109406964,17.43918,2207.5,2206.6,0.14]
[1625109408068,17.43918,2207.5,2206.7,5.01]
[1625109408171,6.79468,2207.5,2206.7,5.01]
[1625109408273,6.79468,2207.5,2206.8,0.14]
[1625109409615,6.79468,2207.5,2206.7,4.9]
[1625109409811,6.79468,2207.5,2206.8,0.14]
[1625109410313,6.79468,2207.5,2206.8,0.04]
[1625109411014,9.05947,2207.8,2206.8,7.7442178]
[1625109411117,9.05947,2207.8,2206.8,0.04]
[1625109411217,9.05947,2207.8,2206.8,4.6805]
[1625109411867,0.0001,2207.8,2207.0,5.01]
[1625109412068,0.0001,2207.8,2207.1,5.15]
[1625109412165,0.0001,2207.8,2207.1,0.14]
[1625109413066,6.79336,2207.8,2207.1,0.14]
[1625109414923,0.06,2207.7,2207.1,0.14]
[1625109415021,0.06,2207.7,2206.6,0.14]
[1625109415120,0.19928213,2207.7,2206.6,0.14]
[1625109415220,0.12844579,2207.7,2206.7,5.01]
[1625109415323,0.0001,2207.8,2206.7,5.01]
[1625109415521,0.0001,2207.8,2206.8,5.01]
[1625109415621,0.0001,2207.8,2206.7,5.01]
[1625109415722,0.0001,2207.8,2206.6,5.15]
[1625109416057,3.39751,2207.7,2206.6,5.15]
[1625109416459,6.79468,2207.4,2206.6,11.94468]
[1625109416757,6.79468,2207.4,2206.6,11.80468]
[1625109417260,6.79468,2207.4,2206.6,6.79468]
[1625109417362,6.79468,2207.4,2206.6,6.93468]
[1625109417461,6.79468,2207.4,2206.6,6.68468]
[1625109417663,0.06,2207.3,2206.6,6.68468]
[1625109417765,0.06,2207.3,2206.3,20.35057]
[1625109417866,0.06,2207.3,2206.4,1.0]
[1625109417964,0.18812481,2207.3,2206.4,1.0]
[1625109418063,0.06,2207.3,2206.4,1.0]
[1625109418514,0.06,2207.3,2206.5,5.01]
[1625109418714,6.79547,2207.2,2206.5,5.01]
[1625109420317,6.79547,2207.2,2206.5,4.91]
[1625109421060,6.79547,2207.2,2206.5,6.79513]
[1625109421772,14.25915,2207.8,2206.6,7.96544373]
[1625109421869,0.0001,2207.8,2206.6,15.98534373]
[1625109421962,0.0001,2207.8,2206.7,0.08804558]
[1625109422161,0.0001,2207.8,2207.2,6.79293]
[1625109422260,0.0001,2207.8,2207.2,10.73183]
[1625109422364,0.0001,2207.8,2207.3,0.14]
[1625109422468,0.0001,2207.8,2207.4,5.01]
[1625109422731,0.0001,2207.8,2207.4,5.15]
[1625109424423,0.0001,2207.8,2207.4,11.94257]
[1625109426411,0.0001,2207.8,2207.4,5.15]
[1625109426609,0.0001,2207.8,2207.4,0.14]
[1625109427354,0.0001,2207.8,2207.4,6.93256]
[1625109428960,0.0001,2207.8,2207.6,5.01]
[1625109429262,0.0001,2207.8,2207.4,0.14]
[1625109429472,0.0001,2207.8,2207.5,6.79237]
[1625109430473,0.0001,2207.8,2207.7,14.31]
[1625109430678,0.0001,2207.8,2207.7,21.10176]
[1625109431529,0.0001,2207.8,2207.7,21.24176]
[1625109431777,0.0001,2207.8,2207.7,25.74176]
[1625109431874,0.0001,2207.8,2207.7,21.24176]
[1625109435729,4.1409,2207.8,2207.7,5.01]
[1625109435826,4.1409,2207.8,2206.9,3.29]
[1625109435827,11.48733534,2207.8,2207.4,1.0]
[1625109436027,4.3409,2207.8,2207.4,1.0]
[1625109436241,0.14,2207.7,2207.4,1.0]
[1625109436433,4.1409,2207.8,2207.4,1.0]
[1625109436832,4.1409,2207.8,2206.8,10.19784]
[1625109437430,4.1409,2207.8,2206.8,1.14]
[1625109437431,5.01,2207.6,2206.8,1.14]
[1625109437535,6.79494,2207.3,2206.8,1.14]
[1625109437634,6.79494,2207.3,2206.8,1.0]
[1625109437732,11.49264,2207.3,2206.8,1.0]
[1625109437830,11.49264,2207.3,2206.6,0.14]
[1625109437831,19.7066871,2207.3,2206.6,0.14]
[1625109437934,0.2,2207.2,2206.2,11.32144]
[1625109438034,0.34628518,2207.2,2206.3,0.14]
[1625109438131,0.14628518,2207.2,2206.3,0.14]
[1625109438233,4.6977,2207.3,2206.3,0.14]
[1625109438475,12.84097733,2207.3,2206.3,0.14]
[1625109438866,4.6977,2207.3,2206.3,0.14]
[1625109439066,6.79568,2207.1,2206.3,0.14]
[1625109439169,21.89518243,2207.3,2206.3,0.14]
[1625109439267,0.04,2207.2,2206.3,0.14]
[1625109440169,6.89,2207.2,2206.3,0.14]
[1625109440470,6.89,2207.2,2206.3,5.15]
[1625109440571,6.79667,2206.8,2206.3,5.15]
[1625109440738,8.21928498,2206.7,2205.7,11.32361]
[1625109440840,8.44795617,2206.7,2206.0,0.14]
[1625109440935,0.22867119,2206.7,2205.5,10.8113]
[1625109441086,0.127052,2206.7,2205.7,0.14]
[1625109441284,0.04,2206.7,2205.7,0.14]
[1625109441487,0.12848841,2206.7,2205.7,0.14]
[1625109441584,5.46663719,2206.8,2205.7,0.14]
[1625109441888,5.01,2206.6,2205.7,0.14]
[1625109441990,5.01,2206.6,2205.2,9.843]
[1625109441991,0.2,2206.3,2205.2,9.843]
[1625109442087,0.18084473,2206.2,2205.3,0.14]
[1625109442184,4.02564473,2206.2,2205.2,9.843]
[1625109442287,0.04,2206.1,2205.2,9.843]
[1625109442387,0.14069136,2206.0,2205.2,9.843]
[1625109442585,0.21932091,2206.1,2205.2,9.843]
[1625109442684,0.21932091,2206.1,2205.1,0.14]
[1625109444036,3.8448,2206.2,2205.1,0.14]
[1625109444436,6.79948,2206.0,2205.1,0.14]
[1625109444834,6.79948,2206.0,2205.2,5.01]
[1625109445035,6.79948,2206.0,2205.1,5.15]
[1625109445379,6.79948,2206.0,2205.2,5.01]
[1625109445475,6.79948,2206.0,2205.3,5.01]
[1625109445577,6.79948,2206.0,2205.2,5.01]
[1625109445674,3.8448,2206.2,2205.2,5.01]
[1625109447126,10.64402,2206.2,2205.2,5.01]
[1625109447577,10.64402,2206.2,2205.2,12.97849684]
[1625109447674,3.8448,2206.2,2205.2,7.96849684]
[1625109447774,3.4075,2206.3,2205.4,5.01]
[1625109447879,2.1467,2206.3,2205.4,5.01]
[1625109447974,1.1092,2206.3,2205.5,0.14]
[1625109448075,18.9385,2206.7,2205.5,0.14]
[1625109448180,18.9385,2206.7,2205.5,6.9377]
[1625109448181,9.8749,2206.7,2205.5,6.9377]
[1625109448275,9.8749,2206.7,2205.5,0.14]
[1625109448382,0.12,2206.6,2205.5,5.15]
[1625109448581,0.12,2206.6,2205.6,5.01]
[1625109448675,0.12,2206.6,2205.5,5.15]
[1625109448875,0.04,2206.5,2205.5,5.15]
[1625109449077,9.8749,2206.7,2205.5,5.15]
[1625109449377,6.79807,2206.5,2205.5,5.15]
[1625109449476,6.79807,2206.5,2205.6,5.01]
[1625109449726,6.79807,2206.5,2205.6,5.15]
[1625109450026,6.79807,2206.5,2205.6,0.14]
[1625109450177,5.01,2206.3,2205.4,1.0]
[1625109450276,8.539069,2206.2,2205.4,1.0]
[1625109450378,21.41381577,2206.2,2205.2,0.14]
[1625109450480,5.01,2206.1,2204.7,7.83967392]
[1625109450580,6.80036,2205.7,2204.9,0.14]
[1625109450899,9.26202381,2206.0,2204.9,0.14]
[1625109451005,0.16210211,2206.3,2205.0,2.40141469]
[1625109451099,10.6731,2206.4,2205.1,9.64024235]
[1625109451200,9.8749,2206.7,2205.4,8.38994121]
[1625109451399,9.8749,2206.7,2205.6,5.01]
[1625109451497,9.8749,2206.7,2205.6,8.3]
[1625109451596,9.8749,2206.7,2205.7,8.11467558]
[1625109451698,22.04205,2207.0,2205.7,8.25467558]
[1625109451987,6.79679,2206.9,2205.9,5.01]
[1625109452087,6.79679,2206.9,2205.8,6.79689]
[1625109452088,10.19584,2206.9,2205.8,6.79689]
[1625109452184,10.39584,2206.9,2205.8,6.79689]
[1625109452285,0.1,2206.8,2206.0,0.14]
[1625109452486,0.1,2206.8,2205.7,8.24912564]
[1625109452583,0.1,2206.8,2206.1,0.14]
[1625109453790,6.7973,2206.7,2206.1,0.14]
[1625109456876,22.04205,2207.0,2206.1,0.14]
[1625109457775,10.7088,2207.0,2206.1,0.14]
[1625109457978,10.7088,2207.0,2206.2,5.01]
[1625109458076,6.79605,2207.1,2206.2,5.01]
[1625109458183,6.79605,2207.1,2206.3,0.14]
[1625109459032,0.12,2207.0,2206.3,0.14]
[1625109459129,6.79605,2207.1,2206.3,0.14]
[1625109459632,6.79605,2207.1,2206.3,5.15]
[1625109459737,16.888,2207.2,2206.3,5.15]
[1625109459935,16.888,2207.2,2206.3,0.14]
[1625109460036,16.888,2207.2,2206.5,5.01]
[1625109460139,6.85,2207.2,2206.0,7.77935976]
[1625109460237,6.85,2207.2,2206.4,0.14]
[1625109460338,6.85,2207.2,2206.5,0.14]
[1625109460440,6.85,2207.2,2206.6,6.7944]
[1625109460541,6.85,2207.2,2206.7,0.06]
[1625109460636,6.85,2207.2,2206.8,5.01]
[1625109460740,6.85,2207.2,2206.8,5.15]
[1625109461382,21.0631,2207.7,2206.8,5.15]
[1625109461480,10.7051,2207.7,2206.8,5.15]
[1625109461579,0.0001,2207.8,2206.8,5.15]
[1625109462478,0.0001,2207.8,2206.9,6.79354]
[1625109462680,0.0001,2207.8,2207.0,0.14]
[1625109463831,6.794,2207.8,2207.0,0.14]
[1625109464031,0.18,2207.7,2207.0,0.14]
[1625109464135,3.2491,2207.7,2207.0,0.14]
[1625109464832,3.23842356,2207.7,2207.0,0.14]
[1625109465033,10.03259356,2207.7,2207.0,0.14]
[1625109466427,16.88259356,2207.7,2207.0,0.14]
[1625109466626,10.08842356,2207.7,2207.0,0.14]
[1625109467425,3.23842356,2207.7,2207.0,0.14]
[1625109467526,0.0001,2207.8,2207.0,0.14]
[1625109467827,0.0001,2207.8,2207.0,6.93333]
[1625109467927,0.0001,2207.8,2207.2,5.01]
[1625109468132,0.0001,2207.8,2207.3,0.14]
[1625109468331,6.64298,2208.1,2207.4,6.65]
[1625109468429,13.86018094,2208.1,2207.4,6.65]
[1625109469028,13.86018094,2208.1,2207.3,0.14]
[1625109471230,6.64298,2208.1,2207.3,0.14]
[1625109471329,17.48962727,2208.3,2207.3,7.8543155]
[1625109471426,17.48962727,2208.3,2207.3,4.8057]
[1625109471527,17.35662534,2208.3,2207.5,5.01]
[1625109471725,17.35662534,2208.3,2207.6,0.14]
[1625109471825,24.14888534,2208.3,2207.6,0.14]
[1625109471925,0.14,2208.2,2207.6,0.14]
[1625109472258,13.80118534,2208.3,2207.2,5.01]
[1625109472359,13.80118534,2208.3,2207.3,0.14]
[1625109472460,6.79226,2208.3,2207.3,0.14]
[1625109473461,6.79291,2208.1,2207.3,0.14]
[1625109473666,28.59904182,2208.5,2207.3,0.14]
[1625109473767,7.04215053,2208.4,2207.3,7.85222127]
[1625109473863,7.04215053,2208.4,2207.3,0.14]
[1625109473964,7.04215053,2208.4,2207.5,5.01]
[1625109474064,7.04215053,2208.4,2207.4,5.01]
[1625109474164,7.04215053,2208.4,2207.6,0.14]
[1625109475478,7.04215053,2208.4,2207.6,6.93137]
[1625109475678,7.04215053,2208.4,2207.8,5.01]
[1625109475879,7.04215053,2208.4,2207.9,0.14]
[1625109476928,7.07024727,2208.4,2207.9,0.14]
[1625109477534,0.1,2208.3,2207.9,0.14]
[1625109477632,6.85,2208.5,2207.9,0.14]
[1625109477733,7.35572159,2208.4,2207.9,0.14]
[1625109477841,6.85,2208.5,2207.9,0.14]
[1625109478435,7.11520188,2208.4,2207.9,0.14]
[1625109478732,6.85,2208.5,2207.9,0.14]
[1625109478991,7.1074167,2208.4,2207.9,0.14]
[1625109479935,13.64186,2208.5,2207.9,0.14]
[1625109480038,6.79186,2208.5,2207.9,0.14]
[1625109480137,7.22179803,2208.4,2207.9,0.14]
[1625109480236,8.13639137,2208.6,2207.9,0.14]
[1625109482495,8.08639137,2208.6,2207.9,0.14]
[1625109482684,8.08639137,2208.6,2207.5,11.80144]
[1625109482785,0.56383874,2208.6,2207.7,0.14]
[1625109483588,0.56383874,2208.6,2207.9,5.01]
[1625109483790,7.85437729,2208.6,2207.9,5.01]
[1625109484394,7.85437729,2208.6,2207.7,0.14]
[1625109484496,9.40323809,2208.3,2207.5,1.0]
[1625109484594,9.36397079,2208.3,2207.5,1.0]
[1625109484690,6.79384,2208.0,2207.5,1.0]
[1625109484792,7.98649599,2207.9,2207.5,1.0]
[1625109484990,3.5565,2208.0,2207.5,1.0]
[1625109485191,11.76529734,2208.0,2207.5,1.0]
[1625109485293,11.76529734,2208.0,2206.9,9.05717]
[1625109485406,0.04,2207.9,2206.9,9.05717]
[1625109485727,11.90308773,2208.0,2206.9,9.05717]
[1625109486331,3.69429039,2208.0,2206.9,9.05717]
[1625109486436,6.79446,2207.7,2206.9,9.05717]
[1625109486580,9.05911,2208.0,2206.9,9.05717]
[1625109487380,9.05911,2208.0,2207.1,5.01]
[1625109487679,6.79399,2207.8,2207.1,11.80379]
[1625109487784,3.4538,2207.8,2206.9,9.05717]
[1625109488195,3.4538,2207.8,2207.1,5.01]
[1625109489003,10.41711,2208.0,2207.1,5.01]
[1625109489096,9.05911,2208.0,2207.1,5.01]
[1625109489299,6.7943,2207.6,2207.1,5.01]
[1625109490589,15.8534095,2208.0,2207.0,6.79393]
[1625109490687,15.8534095,2208.0,2207.2,5.01]
[1625109490987,15.8534095,2208.0,2207.0,5.01]
[1625109491190,20.5410095,2208.0,2207.0,5.01]
[1625109491788,6.79424,2207.6,2207.0,5.01]
[1625109491889,6.79424,2207.6,2207.1,5.01]
[1625109492690,0.0329193,2207.5,2207.1,5.01]
[1625109493293,6.8274693,2207.5,2207.1,5.01]
[1625109493391,10.1945693,2207.5,2207.1,5.01]
[1625109493495,11.4560693,2207.5,2206.9,5.15]
[1625109493594,8.30198108,2207.4,2206.9,0.14]
[1625109493695,8.30198108,2207.4,2206.7,9.9197]
[1625109493795,0.08,2207.4,2206.7,9.9197]
[1625109493893,0.04,2207.3,2206.6,0.14]
[1625109494504,6.79586,2207.1,2206.6,0.14]
[1625109494600,6.79586,2207.1,2206.3,1.0]
[1625109494771,6.79586,2207.1,2206.3,0.14]
[1625109494772,8.1197752,2207.0,2206.3,0.14]
[1625109494860,0.156214,2206.9,2206.0,1.14]
[1625109494959,12.76574418,2207.0,2206.0,1.14]
[1625109495058,0.06,2206.9,2206.0,1.14]
[1625109495159,12.76574418,2207.0,2206.0,1.14]
[1625109495160,20.76574418,2207.0,2206.0,1.14]
[1625109495459,3.3990609,2206.9,2206.0,1.14]
[1625109495559,6.79792,2206.5,2206.0,1.0]
[1625109495660,8.59881248,2206.4,2205.4,0.14]
[1625109495759,0.17584317,2206.3,2205.1,10.3161]
[1625109495933,0.17584317,2206.3,2205.1,10.4561]
[1625109496430,5.01,2206.2,2205.1,0.14]
[1625109496535,6.80052,2205.8,2204.6,6.85]
[1625109496630,8.66123956,2205.7,2204.8,0.14]
[1625109496731,8.66123956,2205.7,2204.6,6.85]
[1625109496828,8.66123956,2205.7,2204.6,6.99]
[1625109497714,6.80183,2205.4,2204.6,6.99]
[1625109497815,6.80183,2205.4,2204.8,5.01]
[1625109498514,0.03295333,2205.5,2204.8,5.01]
[1625109499436,0.03295333,2205.5,2204.8,5.15]
[1625109501140,0.03295333,2205.5,2204.8,11.95002]
[1625109502587,0.03295333,2205.5,2204.9,5.01]
[1625109502686,0.03295333,2205.5,2204.8,11.95002]
[1625109502838,0.03295333,2205.5,2205.1,5.01]
[1625109503137,0.03295333,2205.5,2205.2,0.14]
[1625109503239,10.0461,2206.3,2205.2,0.14]
[1625109503539,8.34331102,2206.6,2205.2,0.14]
[1625109503746,42.22933,2206.7,2205.2,0.14]
[1625109503848,0.04,2206.6,2205.2,0.14]
[1625109504350,3.4396647,2206.6,2205.2,0.14]
[1625109504648,3.3996647,2206.6,2205.2,0.14]
[1625109504749,6.79911,2206.3,2205.3,6.79901]
[1625109504854,42.22933,2206.7,2205.5,5.01]
[1625109504953,20.5314,2206.7,2205.6,8.6794327]
[1625109505048,20.5314,2206.7,2205.6,13.8294327]
[1625109505252,10.6158,2206.7,2205.8,3.29]
[1625109505348,10.8513,2206.8,2206.0,5.01]
[1625109505448,21.3487,2207.2,2206.0,5.01]
[1625109505649,21.3487,2207.2,2206.1,5.15]
[1625109505747,10.5607,2207.2,2206.1,12.86736623]
[1625109505850,10.5607,2207.2,2206.2,6.79606]
[1625109505991,10.5607,2207.2,2206.4,5.01]
[1625109506091,6.79602,2207.3,2206.4,5.01]
[1625109506190,6.79602,2207.3,2206.5,0.14]
[1625109506492,10.1201,2207.5,2206.5,5.15]
[1625109506595,10.1201,2207.5,2206.5,0.14]
[1625109506690,10.1201,2207.5,2206.7,5.01]
[1625109506794,10.1201,2207.5,2206.4,17.23871748]
[1625109506893,10.1201,2207.5,2206.8,0.14]
[1625109506993,10.1201,2207.5,2206.6,1.0809]
[1625109507094,10.1201,2207.5,2206.9,0.14]
[1625109507194,27.56003,2207.7,2206.9,0.14]
[1625109507195,27.56003,2207.7,2206.9,3.7602]
[1625109507295,6.79473,2207.7,2206.9,8.7702]
[1625109507494,16.8616,2207.9,2206.9,3.7602]
[1625109507495,10.0116,2207.9,2206.9,3.7602]
[1625109507596,10.0116,2207.9,2207.1,5.01]
[1625109507694,3.3975512,2208.0,2207.1,5.01]
[1625109507796,3.3975512,2208.0,2207.2,0.14]
[1625109507898,11.32806,2208.1,2207.2,0.14]
[1625109508099,37.4492,2208.4,2207.2,7.90220334]
[1625109508260,6.7935,2208.2,2207.2,0.14]
[1625109508356,6.7935,2208.2,2207.2,5.15]
[1625109509052,6.7935,2208.2,2207.2,0.14]
[1625109509153,5.01,2208.0,2207.2,0.14]
[1625109509255,6.79445,2207.8,2207.2,0.14]
[1625109509755,11.26605,2207.8,2206.8,1.0]
[1625109509852,8.14621853,2207.7,2206.9,0.14]
[1625109510052,8.20621853,2207.7,2206.9,0.14]
[1625109510352,0.06,2207.7,2206.9,0.14]
[1625109510973,0.04,2207.6,2206.9,0.14]
[1625109511171,8.0,2207.8,2206.9,0.14]
[1625109511273,3.3978936,2207.8,2206.9,0.14]
[1625109511369,5.01,2207.7,2206.9,0.14]
[1625109511471,6.79582,2207.4,2206.9,0.14]